Cogmind - Beta 16 @@@ ROGUE MODE // 2025.10.28 @ 01:08:11 Player: shapeshifter Result: Destroyed by CL-ANK with CL-ANK's Mallet Performance ------------- Evolutions (1) 500 Regions Visited (6) 1200 Robots Destroyed (70) 350 Value Destroyed (1152) 1152 Prototype IDs (29) 580 Alien Tech Used (0) 0 Bonus (325) 325 TOTAL SCORE: 4107 Bonus ------- Follower Combat Kills 25 Aligned with FarCom 300 Cogmind --------- Core Integrity 0/400 Matter 280/300 Energy 310/310 System Corruption 2% Temperature Cool (0) Movement Treading (320) Ox2 Location -8/Mines Parts ------- > --- POWER (1) -------- Heavy Deuterium Engine > --- PROPULSION (2) --- Light Treads > --- UTILITY (4) ------ High-capacity Storage Unit Improved Target Analyzer Makeshift Core Shielding > --- WEAPON (2) ------- Improved Assault Rifle Improved Assault Rifle > --- INVENTORY (20) --- Light Neutrino Core Makeshift Hover Unit Makeshift Hover Unit Combat Antigrav System Experimental Targeting Computer Experimental Core Analyzer Advanced Component Analysis Suite Improved System Guard System Purifier Decoy Drone Bay (16/16) PSU Rigger AS-neutralizer No. 17b AWS/Autocannon Deploy-a-Sentry Deploy-a-Sentry Deploy-a-Sentry Deploy-a-Sentry Peak State ------------ > --- POWER ------------ Heavy Deuterium Engine > --- PROPULSION ------- Makeshift Leg Makeshift Leg > --- UTILITY ---------- High-capacity Storage Unit Improved Target Analyzer Makeshift Core Shielding Improved Light Armor Plating > --- WEAPON ----------- Improved Assault Rifle Improved Assault Rifle > --- INVENTORY -------- Light Neutrino Core Makeshift Hover Unit Makeshift Hover Unit Combat Antigrav System Experimental Targeting Computer Experimental Core Analyzer Advanced Component Analysis Suite Improved System Guard System Purifier Decoy Drone Bay PSU Rigger AS-neutralizer No. 17b AWS/Autocannon Deploy-a-Sentry Deploy-a-Sentry Deploy-a-Sentry Deploy-a-Sentry [Rating: 49] Favorites ----------- Power Deuterium Engine Engine Deuterium Engine Power Core Light Neutrino Core Propulsion Light Treads Treads Light Treads Leg Makeshift Leg Wheel Compact Wheel Flight Unit Improved Flight Unit Utility Advanced Targeting Computer Device Improved Heat Sink Storage Large Storage Unit Processor Advanced Targeting Computer Hackware Hacking Suite Protection Hardened Light Armor Plating Weapon Spread Laser Energy Gun Spread Laser Energy Cannon Heavy Particle Cannon Ballistic Gun Improved Assault Rifle Launcher Mini Grenade Launcher Build | -11 -10 -10 -9 -9 -9 -8 ------- Run | Yrd Mat Min Mat Min Exi Min Slots Evolved 2 | . . . 2 . . . Power . | . . . . . . . Propulsion . | . . . . . . . Utility 2 | . . . 2 . . . Weapon . | . . . . . . . Parts Attached 50 | 8 6 2 13 . 21 . Power 5 | 1 . 1 . . 3 . Engine 4 | 1 . 1 . . 2 . Core 1 | . . . . . 1 . Reactor . | . . . . . . . Propulsion 14 | 3 . . 6 . 5 . Treads 10 | 2 . . 5 . 3 . Leg 2 | . . . . . 2 . Wheel 1 | 1 . . . . . . Hover . | . . . . . . . Flight 1 | . . . 1 . . . Utility 17 | 2 4 . 4 . 7 . Device 4 | 1 1 . . . 2 . Storage 4 | 1 2 . . . 1 . Processor 2 | . . . 1 . 1 . Hackware 1 | . . . 1 . . . Protection 6 | . 1 . 2 . 3 . Artifact . | . . . . . . . Weapon 14 | 2 2 1 3 . 6 . Energy Gun 3 | . 2 . 1 . . . Energy Cannon 1 | . . 1 . . . . Ballistic Gun 9 | 2 . . 2 . 5 . Ballistic Cannon . | . . . . . . . Launcher 1 | . . . . . 1 . Special Weapon . | . . . . . . . Impact Weapon . | . . . . . . . Slashing Weapon . | . . . . . . . Piercing Weapon . | . . . . . . . Special Melee Weapon . | . . . . . . . Unidentified Prototypes 6 | . . . 2 . 4 . Parts Lost 9 | . . . . . 7 2 Power 1 | . . . . . 1 . Propulsion 4 | . . . . . 3 1 Utility 3 | . . . . . 2 1 Weapon 1 | . . . . . 1 . Highest Loss Streak 5 | . . . . . 5 2 To Critical Strikes 4 | . . . . . 4 . Average Backups 14 | 4 11 15 14 15 14 13 Power . | 1 1 . . . 1 1 Propulsion 1 | 1 . 1 1 2 1 3 Utility 6 | . 7 9 7 4 4 8 Weapon 5 | . 2 3 6 9 7 1 Tool/Special . | . . . . . . . Unused Backups 36 | . 4 3 8 . 11 10 Power 4 | . . 1 . . 3 . Propulsion 5 | . 1 . 1 . . 3 Utility 17 | . 2 1 3 . 5 6 Weapon 9 | . 1 . 4 . 3 1 Tool/Special 1 | . . 1 . . . . Average Slot Usage (%) 96 | . 99 100 99 100 90 100 Engine 10 | . 14 14 11 11 8 11 Treads 21 | . 28 28 21 22 15 22 Leg 1 | . . . . . 3 . Device 5 | . 9 14 9 . . . Storage 11 | . 14 14 11 11 11 11 Processor 7 | . . . 10 11 11 11 Hackware 3 | . . . 4 11 3 . Protection 9 | . 4 . 8 11 15 22 Energy Gun 12 | . 27 28 18 . . . Ballistic Gun 10 | . . . 3 22 20 22 Peak Build Rating 49 | 7 13 16 25 25 49 43 Average Rating 21 | 5 12 13 21 24 27 42 On Entrance 18 | . 7 13 15 24 25 43 Avg Prop Armor Cover (%) . | . . . . . . . Naked Turns . | . . . . . . . Heaviest Build 65 | 14 56 36 41 60 65 61 Greatest Support 43 | 40 40 40 43 43 43 40 Greatest Overweight (x) 7 | . 1 . 7 1 3 1 Average Overweight (x) . | . . . . . 1 1 Largest Inventory Capacity 20 | 8 20 15 15 20 20 20 Average Capacity 16 | 7 15 15 15 17 19 20 Most Carried 20 | 6 15 15 15 17 20 20 Average Carried 15 | 4 11 14 14 15 18 20 Final Capacity 20 | 8 15 15 15 20 20 20 Final Carried 20 | 6 15 15 15 17 20 20 Class Distribution -------------------- 90% | Mutant 9% | Scavenger-Mutant Dominant Class ---------------- Mutant | -10/Materials Mutant | -10/Mines Mutant | -9/Materials Mutant | -9/Mines Mutant | -9/Exiles Scavenger-Mutant | -8/Mines Resources | -11 -10 -10 -9 -9 -9 -8 ----------- Run | Yrd Mat Min Mat Min Exi Min Matter Collected 2205 | 312 260 52 206 48 1279 48 Remotely . | . . . . . . . Salvage Created 1990 | 114 573 169 512 78 496 48 Parts 162 | 9 40 12 20 13 67 1 Haulers Intercepted 4 | . 1 . 3 . . . Recyclers Shooed 1 | . 1 . . . . . Parts Field Recycled . | . . . . . . . Retrieved Matter . | . . . . . . . Parts Self-Destructed . | . . . . . . . Prevented . | . . . . . . . Parts Restored . | . . . . . . . Kills | -11 -10 -10 -9 -9 -9 -8 ------- Run | Yrd Mat Min Mat Min Exi Min Combat Hostiles Destroyed 46 | . 18 5 13 3 6 1 Guns 41 | . 18 5 13 3 1 1 AOE 5 | . . . . . 5 . Classes Destroyed 12 | 2 5 . 1 . 3 1 Tunneler 5 | 2 . 1 . 2 . . Hauler 4 | . 1 . 3 . . . Recycler 5 | 1 1 1 2 . . . Operator 2 | . 1 . 1 . . . Turret 1 | . . . . . 1 . Watcher 3 | . 3 . . . . . Swarmer 21 | . 9 3 6 3 . . Grunt 16 | . 9 2 5 . . . Sentry 2 | . . . 2 . . . Hunter 1 | . . . . . . 1 Zionite 7 | . . . . . 7 . Assembled 5 | . . . . . 5 . Best Kill Streak 6 | 1 4 3 6 3 5 1 Combat Bots Only 6 | . 3 3 6 3 5 1 Max Kills in Single Turn 2 | 1 2 2 2 1 2 1 Gunslinging . | . . . . . . . Exploded 2 | . . . . . 2 . Melee . | . . . . . . . Uniques/NPCs Destroyed 4 | . . . . . 4 . 8R-AWN (-9/Exiles) EX-DEC (-9/Exiles) EX-BIN (-9/Exiles) EX-HEX (-9/Exiles) Combat | -11 -10 -10 -9 -9 -9 -8 -------- Run | Yrd Mat Min Mat Min Exi Min Hostile Shots Fired 222 | . 46 12 38 20 90 16 Missed 46 | . 14 3 9 6 12 2 Hits 176 | . 32 9 29 14 78 14 Melee 4 | . . . . . . 4 Projectile 172 | . 32 9 29 14 78 10 Critical Strikes 48 | . . 1 1 1 41 4 Actively Blocked 2 | . . . . . . 2 Damage Taken 2717 | . 300 98 313 111 1293 602 Core 588 | . 65 29 58 10 146 280 Absorbed by Shields . | . . . . . . . Redirected to Shielding 29 | . . . . . . 29 Core Remaining (%) 81 | 100 . 62 . . . . Volleys Fired 216 | 8 39 8 31 8 109 13 Largest 2 | 2 2 2 2 2 2 2 Hottest 130 | 40 130 130 130 46 46 46 Shots Fired 402 | 16 78 17 62 16 187 26 Gun 371 | 16 78 17 62 16 156 26 Cannon . | . . . . . . . Launcher 31 | . . . . . 31 . Special . | . . . . . . . Kinetic 216 | 16 . . 2 16 156 26 Thermal 155 | . 78 17 60 . . . Explosive 31 | . . . . . 31 . Electromagnetic . | . . . . . . . Robot Hit Streak 27 | 5 8 11 23 4 27 5 Robot Miss Streak 11 | 2 11 3 5 1 4 1 Penetration Max . | . . . . . . . Secondary Targets 8 | . 4 . 2 1 1 . Max Gunslinging Chain 1 | . 1 . 1 1 1 . Shots Hit Robots 287 | 9 65 13 52 10 117 21 Core Hits 251 | 4 85 25 75 5 51 6 Critical Kills . | . . . . . . . Critical Parts Destroyed 2 | . . . . . 2 . Critical Strikes 3 | . . . . . 2 1 Destroy 3 | . . . . . 2 1 Melee Attacks . | . . . . . . . Impact . | . . . . . . . Slashing . | . . . . . . . Piercing . | . . . . . . . Sneak Attacks . | . . . . . . . Combat Hostiles . | . . . . . . . Follow-up Attacks . | . . . . . . . Damage Inflicted 4693 | 96 701 204 768 156 2548 220 Guns 3904 | 96 701 204 768 156 1759 220 Cannons . | . . . . . . . Explosions 789 | . . . . . 789 . Melee . | . . . . . . . Ramming . | . . . . . . . Kinetic 2247 | 96 . . 16 156 1759 220 Thermal 1657 | . 701 204 752 . . . Explosive 789 | . . . . . 789 . Electromagnetic . | . . . . . . . Impact . | . . . . . . . Slashing . | . . . . . . . Piercing . | . . . . . . . Highest Corruption 2 | . 2 2 . . 2 2 Average Corruption 1 | . 2 2 . . 1 2 Corruption Purged . | . . . . . . . Corruption Blocked . | . . . . . . . Effects 25 | . 5 10 . . 9 1 Message Errors 6 | . 2 2 . . 1 1 Matter Fused 3 | . . 3 . . . . Heat Flow Errors 2 | . 1 . . . 1 . Energy Discharges 3 | . 1 1 . . 1 . Data Loss (minor) 5 | . 1 1 . . 3 . Data Loss (major) 3 | . . 2 . . 1 . Misfires 2 | . . 1 . . 1 . Weapon Failures 1 | . . . . . 1 . Overload Shots . | . . . . . . . Overflow Damage 8 | . . . . . 8 . Projectiles . | . . . . . . . Explosions 8 | . . . . . 8 . Melee . | . . . . . . . Knockbacks . | . . . . . . . Impact . | . . . . . . . Kinetic . | . . . . . . . Secondary . | . . . . . . . Self-Inflicted Damage . | . . . . . . . Shots . | . . . . . . . Rammed . | . . . . . . . Targets Rammed . | . . . . . . . Kicked . | . . . . . . . Crushed . | . . . . . . . Highest Temperature 336 | . 336 159 156 . 151 . Average Temperature 61 | . 88 60 39 . 36 . Received Heat Transfer 243 | . 81 51 93 . 18 . Siege Activations . | . . . . . . . Martial Activations . | . . . . . . . Shielding Activations . | . . . . . . . Robots Disrupted . | . . . . . . . Combat Hostiles . | . . . . . . . Robots Corrupted . | . . . . . . . Combat Hostiles . | . . . . . . . Parts Fried . | . . . . . . . Impact Corruptions . | . . . . . . . Robots Melted . | . . . . . . . Combat Hostiles . | . . . . . . . Parts Melted . | . . . . . . . Heat Transferred 2080 | . 875 240 965 . . . Parts Sabotaged . | . . . . . . . Parts Stolen . | . . . . . . . Parts Stripped . | . . . . . . . Power Chain Reactions . | . . . . . . . Alert | -11 -10 -10 -9 -9 -9 -8 ------- Run | Yrd Mat Min Mat Min Exi Min Maximum Alert Level 1 | . 1 . . . . . Low Security (%) 86 | 100 56 100 100 100 . 100 Level 1 13 | . 43 . . . . . Level 2 . | . . . . . . . Level 3 . | . . . . . . . Level 4 . | . . . . . . . Level 5 . | . . . . . . . High Security . | . . . . . . . Max Security . | . . . . . . . Peak Influence 277 | 5 277 121 145 77 . 30 Initial 61 | . . 61 . 7 . . Average 61 | . 145 23 30 16 . 12 Influence Increases 1184 | 15 525 130 404 80 . 30 Destroy 0b10 Robot/C 820 | . 360 100 280 60 . 20 Destroy 0b10 Robot/NC 95 | 15 30 10 30 10 . . Destroy Leader 174 | . 78 20 56 10 . 10 Allied During Kill 3 | . . . 3 . . . Successful Hack 31 | . 12 . 19 . . . Select Force Hacks 30 | . 30 . . . . . Destroy Structure 1 | . . . 1 . . . Lose Combat Pursuer 30 | . 15 . 15 . . . Influence Decreases 1184 | 15 366 289 385 99 . 30 Entered New Map 110 | . . 98 . 12 . . Time Decay 1064 | 15 366 191 385 87 . 20 Lost Part 10 | . . . . . . 10 Squads Dispatched 5 | . 3 1 1 . . . Investigation 3 | . 2 1 . . . . Extermination . | . . . . . . . Reinforcement 2 | . 1 . 1 . . . Assault . | . . . . . . . Garrison . | . . . . . . . Intercept . | . . . . . . . Searches Triggered . | . . . . . . . Construction Impeded . | . . . . . . . Haulers Reinforced . | . . . . . . . Active Scanning Responses . | . . . . . . . Cargo Convoy Interrupts . | . . . . . . . Stealth | -11 -10 -10 -9 -9 -9 -8 --------- Run | Yrd Mat Min Mat Min Exi Min Distress Signals 4 | . 2 . 2 . . . Communications Jammed . | . . . . . . . Distress Signals . | . . . . . . . Times Spotted 68 | . 24 5 19 4 14 2 Peak Tracking Total 9 | . 4 3 5 4 9 2 Tactical Retreats 3 | . 1 . 1 . 1 . Traps | -11 -10 -10 -9 -9 -9 -8 ------- Run | Yrd Mat Min Mat Min Exi Min Traps Triggered 2 | . 1 . 1 . . . Indirectly . | . . . . . . . Trap Hack Attempts . | . . . . . . . Triggered . | . . . . . . . Disarmed . | . . . . . . . Reprogrammed . | . . . . . . . Reused . | . . . . . . . Traps Extracted . | . . . . . . . Installed . | . . . . . . . Triggered . | . . . . . . . Machines | -11 -10 -10 -9 -9 -9 -8 ---------- Run | Yrd Mat Min Mat Min Exi Min Machines Disabled 8 | . . . . . 8 . Max in Single Turn 1 | . . . . . 1 . Machines Repaired . | . . . . . . . Machines Dismantled . | . . . . . . . Machines Sabotaged . | . . . . . . . Overloaded Fab Kills . | . . . . . . . Hacking | -11 -10 -10 -9 -9 -9 -8 --------- Run | Yrd Mat Min Mat Min Exi Min Machines Accessed 22 | . 9 1 9 1 2 . Terminals 15 | . 7 . 8 . . . Fabricators . | . . . . . . . Repair Stations . | . . . . . . . Recycling Units 2 | . 2 . . . . . Scanalyzers 1 | . . . 1 . . . Garrison Access . | . . . . . . . Total Hacks 49 | . 24 1 21 1 2 . Successful 21 | . 10 1 7 1 2 . Failed 27 | . 14 . 13 . . . Catastrophic 5 | . 4 . 1 . . . Database Lockouts 1 | . . . 1 . . . Manual 38 | . 20 . 17 . 1 . Terminals 39 | . 21 . 18 . . . Fabricators . | . . . . . . . Repair Stations . | . . . . . . . Recycling Units 3 | . 3 . . . . . Scanalyzers 3 | . . . 3 . . . Garrison Access . | . . . . . . . Terminal Hacks 7 | . 2 1 1 1 2 . Record 1 | . . . . . 1 . Robot Analysis 1 | . 1 . . . . . Open Door 2 | . . 1 . 1 . . Zone Layout 2 | . 1 . 1 . . . Proto ID Catalog 1 | . . . . . 1 . Fabricator Hacks . | . . . . . . . Repair Station Hacks . | . . . . . . . Recycling Unit Hacks 1 | . 1 . . . . . Retrieve Components 1 | . 1 . . . . . Scanalyzer 1 | . . . 1 . . . Retrieve Study 1 | . . . 1 . . . Garrison Access Hacks . | . . . . . . . Unauthorized Hacks 12 | . 7 . 5 . . . Terminals 11 | . 6 . 5 . . . Skim 11 | . 6 . 5 . . . Fabricators . | . . . . . . . Repair Stations . | . . . . . . . Recycling Units 1 | . 1 . . . . . Tunnel 1 | . 1 . . . . . Scanalyzers . | . . . . . . . Garrison Access . | . . . . . . . Data Cores Recovered . | . . . . . . . Used . | . . . . . . . Hacking Detections 15 | . 8 . 7 . . . Full Trace Events 1 | . 1 . . . . . Feedback Events . | . . . . . . . Feedback Blocked . | . . . . . . . Robot Schematics Acquired . | . . . . . . . Robots Built . | . . . . . . . Authchips . | . . . . . . . Time . | . . . . . . . Total Robot Build Rating . | . . . . . . . Part Schematics Acquired . | . . . . . . . Parts Built . | . . . . . . . Authchips . | . . . . . . . Time . | . . . . . . . Total Part Build Rating . | . . . . . . . Part Studies Acquired 1 | . . . 1 . . . Parts Repaired . | . . . . . . . Time . | . . . . . . . Parts Recycled . | . . . . . . . Recycled Matter . | . . . . . . . Retrieved Matter . | . . . . . . . Retrieved Components 3 | . 3 . . . . . Parts Scanalyzed . | . . . . . . . Part Schematics Acquired . | . . . . . . . Parts Damaged . | . . . . . . . Bothacking | -11 -10 -10 -9 -9 -9 -8 ------------ Run | Yrd Mat Min Mat Min Exi Min Used RIF Installer . | . . . . . . . Robots Hacked . | . . . . . . . Non-combat . | . . . . . . . Combat . | . . . . . . . Robot Hacks Applied . | . . . . . . . Relay Couplers Released . | . . . . . . . Fabnet Peak Effective % . | . . . . . . . Robots Rewired . | . . . . . . . Allies Hacked . | . . . . . . . Hacks Repelled . | . . . . . . . Allies | -11 -10 -10 -9 -9 -9 -8 -------- Run | Yrd Mat Min Mat Min Exi Min Total Allies 1 | . . 1 . . . . Largest Group 1 | . . 1 1 . . . Highest-Rated Group 31 | . . 31 31 . . . Highest-Rated Ally 31 | . . 31 31 . . . Total Orders . | . . . . . . . Ally Attacks 4 | . . . 4 . . . Total Damage 42 | . . . 42 . . . Kills 1 | . . . 1 . . . Allies Corrupted . | . . . . . . . Allies Melted . | . . . . . . . Intel | -11 -10 -10 -9 -9 -9 -8 ------- Run | Yrd Mat Min Mat Min Exi Min Active Infowar (turns) 66 | 24 42 . . . . . Seismic 66 | 24 42 . . . . . Robot Analysis Total 1 | . 1 . . . . . Derelict Logs Recovered 3 | . . 2 . 1 . . Drone Launches . | . . . . . . . Drone Recoveries . | . . . . . . . Exploration | -11 -10 -10 -9 -9 -9 -8 ------------- Run | Yrd Mat Min Mat Min Exi Min Turns Passed 7593 | 112 1389 918 1758 416 2926 74 Spaces Moved 3259 | 51 692 524 768 201 1008 15 Core 10 | 10 . . . . . . Treads 3057 | 35 692 524 767 201 823 15 Legs 185 | . . . . . 185 . Wheels 6 | 6 . . . . . . Hover . | . . . . . . . Flight 1 | . . . 1 . . . Fastest Speed 50 | 50 160 160 160 160 160 240 Average Speed 199 | 131 170 160 200 194 242 240 Slowest Speed 550 | 160 240 160 550 240 400 240 Overloaded Moves . | . . . . . . . Propulsion Burnouts . | . . . . . . . Robots Hopped . | . . . . . . . Potential Cave-ins . | . . . . . . . Cave-ins Triggered . | . . . . . . . Exploration Rate (%) 60 | 4 98 96 76 55 88 6 Regions Visited 6 Branch Regions 4 Pre-discovered Areas 7 | . 3 . 2 1 1 . Known Exits Taken 1 | . . 1 . . . . Unknown Exits Taken 5 | 1 1 . 1 1 1 . Scrap Searched 2 | . . 1 . 1 . . Spaces Dug . | . . . . . . . Terrain Destroyed 20 | . . . . . 20 . Melee . | . . . . . . . Projectile . | . . . . . . . AOE 20 | . . . . . 20 . Terrain Rammed . | . . . . . . . Walls Destroyed . | . . . . . . . Machines Disabled . | . . . . . . . Actions | -11 -10 -10 -9 -9 -9 -8 --------- Run | Yrd Mat Min Mat Min Exi Min Total 4009 | 81 824 589 931 210 1345 29 Wait 296 | 3 65 46 72 . 109 1 Move 3253 | 50 691 523 767 200 1007 15 Hop . | . . . . . . . Pick Up 94 | 12 15 4 18 1 44 . Fast Attach 15 | 1 1 . 5 . 8 . Attach 22 | 6 1 . 4 . 11 . Detach 3 | . . . . . 3 . Swap 30 | 1 4 3 11 1 10 . Drop 80 | . 8 5 23 . 44 . Fire 216 | 8 39 8 31 8 109 13 Melee . | . . . . . . . Ram . | . . . . . . . Kick . | . . . . . . . Crush . | . . . . . . . Escape Stasis . | . . . . . . . Rewire . | . . . . . . . Trap . | . . . . . . . Miscellaneous . | . . . . . . . Route ------- -11/Scrapyard -10/Materials (discovered 6 exits: *Mat x3 / *Min x2 / Sub) -10/Mines (discovered 3 exits: *Mat x2 / *Sub) -9/Materials (discovered 4 exits: *Mat x3 / *Min) -9/Mines (discovered 3 exits: *Mat x2 / *Exi) -9/Exiles -8/Mines (discovered 1 exit: Mat) History --------- Turn | Location | Event 9 | -11/Scrapyard | Discovered new exit (range 16) 113 | -11/Scrapyard | Entered Materials 314 | -10/Materials | Build established: Mutant 370 | -10/Materials | Discovered new exit (range 4) 610 | -10/Materials | Discovered new exit (range 10) 644 | -10/Materials | Discovered new exit (range 3) 778 | -10/Materials | Discovered new exit (range 13) 1121 | -10/Materials | Discovered new exit (range 12) 1329 | -10/Materials | Learned location of Mines (-9) 1360 | -10/Materials | Learned 2 Storage zone layouts 1381 | -10/Materials | Learned location of 1 exit from Storage 1393 | -10/Materials | Learned 4 Recycling zone layouts 1397 | -10/Materials | Identified exit to Subcaves 1398 | -10/Materials | Learned Storage trap positions 1399 | -10/Materials | Learned Materials stockpile data 1406 | -10/Materials | Learned location of Mines (-8) 1422 | -10/Materials | Learned 2 Mines zone layouts 1502 | -10/Materials | Entered Mines 1503 | -10/Mines | Identified exit to Materials 1536 | -10/Mines | Met a Derelict bent on vengeance 1817 | -10/Mines | Learned Materials emergency access door positions 2092 | -10/Mines | Met a Derelict shopkeep closing up shop 2318 | -10/Mines | Received a Mining Laser from a helpful Derelict 2420 | -10/Mines | Entered Materials 2420 | -9/Materials | Accompanied by 1 ally 2420 | -9/Materials | Evolved 2 slots: Utility x2 2421 | -9/Materials | Identified exit to Materials 2498 | -9/Materials | Central database locked down 2893 | -9/Materials | Discovered new exit (range 7) 3183 | -9/Materials | Discovered exit to Materials (range 4) 3526 | -9/Materials | Discovered exit to Materials (range 18) 3592 | -9/Materials | Loaded intel: 12 terminal locations 3691 | -9/Materials | Learned location of Zion (-6) 3751 | -9/Materials | Learned location of 2 exits from Materials 3768 | -9/Materials | Learned Storage stockpile data 3776 | -9/Materials | Learned Materials emergency access door positions 3856 | -9/Materials | Learned Materials stockpile data 3901 | -9/Materials | Learned location of 1 exit from Recycling 4178 | -9/Materials | Entered Mines 4204 | -9/Mines | Assembled infested the area 4368 | -9/Mines | Found the Drone Emporium 4391 | -9/Mines | Found Prototype Device 4584 | -9/Mines | Deemed a non-threat by the Exiles lab entrance 4584 | -9/Mines | Discovered new exit (range 5) 4594 | -9/Mines | Entered Exiles 4652 | -9/Exiles | Met 8R-AWN 4753 | -9/Exiles | Met EX-HEX 4869 | -9/Exiles | Met EX-DEC 5036 | -9/Exiles | Discovered new exit (range 14) 5350 | -9/Exiles | Met EX-BIN 5384 | -9/Exiles | Aligned with FarCom system 5386 | -9/Exiles | Given EX-Vault access code 5441 | -9/Exiles | Opened EX-Vault 5461 | -9/Exiles | Found PSU Rigger 5474 | -9/Exiles | Found AWS/Autocannon 5477 | -9/Exiles | Found Deploy-a-Sentry 5480 | -9/Exiles | Found Deploy-a-Sentry 5485 | -9/Exiles | Found Deploy-a-Sentry 5539 | -9/Exiles | Warned to stay clear of 0b10 Research branches 6016 | -9/Exiles | Attacked by the Exiles 6202 | -9/Exiles | Lost 5 parts (2n2u1w) 6205 | -9/Exiles | Destroyed 8R-AWN 6213 | -9/Exiles | Found Prototype Device 6216 | -9/Exiles | Found Prototype Processor 6217 | -9/Exiles | Identified AS-neutralizer No. 17b 6820 | -9/Exiles | Core integrity fell below 50% 6839 | -9/Exiles | Destroyed EX-DEC 6909 | -9/Exiles | Destroyed EX-BIN 6928 | -9/Exiles | Destroyed EX-HEX 7045 | -9/Exiles | Identified Decoy Drone Bay 7072 | -9/Exiles | Found Prototype Processor 7106 | -9/Exiles | Found Deploy-a-Sentry 7186 | -9/Exiles | Found Prototype Device 7343 | -9/Exiles | Build established: Scavenger-Mutant 7520 | -9/Exiles | Stole three prototypes: PSU Rigger, AWS/Autocannon, Deploy-a-Sentry 7520 | -9/Exiles | Entered Mines 7581 | -8/Mines | CL-ANK came to Exiles' defense 7591 | -8/Mines | Core integrity fell below 20% 7594 | -8/Mines | Destroyed by CL-ANK with CL-ANK's Mallet Last Messages --------------- Loading 1 Materials entrance... 07531_ Slug penetrates Wall. 07534_ Penetrated by Slug. 07535_ K-01 Serf collects debris. 07537_ Slug penetrates Wall. 07539_ K-01 Serf collects debris. 07540_ Penetrated by Slug. 07541_ K-01 Serf collects debris. 07545_ H-55 Commando destroyed. 07546_ K-01 Serf collects debris. 07550_ Acquired 48 matter. 07551_ K-01 Serf collects debris. 07578_ K-01 Serf suffers critical hit (Smash). 07578_ K-01 Serf destroyed. 07580_ K-01 Serf collects debris. 07581_ CL-ANK: "I came as fast as I could... Wait, it was you!" 07584_ CL-ANK suffers critical hit (Destroy). 07591_ Lgt. Treads destroyed. 07593_ Critical hit (Smash). 07593_ Imp. Light Armor Plating destroyed. Map ----- +----------------------------------------------------+ | ?????????????????????????????????????????????????? | | ?????????????????????????????????????????????????? | | ?????????????????????????????????????????????????? | | ?????????????????????????????????????????????????? | | ?????????????????????????????????????????????????? | | ?????????????????????????????????????????????????? | | ?????????????????????????????????????????????????? | | ?????????????????????????????????????????????????? | | ?????????????????????????????????????????????????? | | ?????????????????????????????????????????????????? | | ?????????????????????????????????????????????????? | | ?????????????????????????????????????????????????? | | ?????????????????????????????????????????????????? | | ?????????????????????????????????????????????????? | | ??????????????????????###????????????????????????? | | ?????????????????????## #???????????????????????? | | ?????????????????????? ???????????????????????? | | ?????????????????????? ???????????????????????? | | ?????????????????????? ???????????????????????? | | ??????????????????????? ???????????????????????? | | ??????????????????????? ???????????????????????? | | ???????????????????????# #???????????????????????? | | ???????????????????????# #????????? #???????????? | | ???????????????????##### #######%* #????????????? | | ??????????????????## ## #????????????? | | ?????????????###### @b #????????????? | | ?????????????# ####### ##????????????? | | ?????????????# #### #????????###?????????????? | | ??????????????????## * #????????????????????????? | | ???????????????????### #???????????????????????? | | ?????????????????????## #??????????????????????? | | ??????????????????????? #?????????????????????? | | ???????????????????????# ##????????????????